fUST/lending_fUST_20240715
["ID","MTS","AMOUNT","RATE_DAILY","PERIOD"]
[332175518,1721004666822,-500.0,0.00025479,2]
[332175519,1721004666833,-500.0,0.00025479,2]
[332175520,1721004666843,-500.0,0.00025479,2]
[332175521,1721004666853,-500.0,0.00025479,2]
[332175522,1721004666863,-550.2580959,0.00025479,2]
[332175523,1721004666876,-500.0,0.00025479,2]
[332175524,1721004666885,-500.0,0.00025479,2]
[332175525,1721004666896,-500.0,0.00025479,2]
[332175526,1721004666906,-500.0,0.00025479,2]
[332175527,1721004666916,-500.0,0.00025479,2]
[332175528,1721004666925,-454.70296421,0.00025479,2]
[332175529,1721004666935,-500.0,0.00025479,2]
[332175530,1721004666945,-500.0,0.00025479,2]
[332175531,1721004666954,-500.0,0.00025479,2]
[332175532,1721004666965,-500.0,0.00025479,2]
[332175533,1721004666974,-500.0,0.00025479,2]
[332175534,1721004666985,-500.0,0.00025479,2]
[332175535,1721004666995,-628.29331131,0.00025479,2]
[332175536,1721004667004,-500.0,0.00025479,2]
[332175537,1721004667014,-534.26869041,0.00025479,2]
[332175538,1721004667023,-500.0,0.00025479,2]
[332175539,1721004667033,-500.0,0.00025479,2]
[332175540,1721004667042,-500.0,0.00025479,2]
[332175541,1721004667053,-500.0,0.00025479,2]
[332175542,1721004667062,-500.0,0.00025479,2]
[332175543,1721004667071,-500.0,0.00025479,2]
[332175544,1721004667082,-500.0,0.00025479,2]
[332175545,1721004667091,-500.0,0.00025479,2]
[332175546,1721004667101,-500.0,0.00025479,2]
[332175547,1721004667110,-569.53,0.00025479,2]
[332175548,1721004667120,-500.0,0.00025479,2]
[332175549,1721004667130,-500.0,0.00025479,2]
[332175550,1721004667140,-500.0,0.00025479,2]
[332175551,1721004667149,-500.0,0.00025479,2]
[332175552,1721004667158,-500.0,0.00025479,2]
[332175553,1721004667168,-500.0,0.00025479,2]
[332175554,1721004667178,-500.0,0.00025479,2]
[332175555,1721004667188,-500.0,0.00025479,2]
[332175556,1721004667198,-504.87051403,0.00025479,3]
[332175557,1721004667208,-200.0,0.00025479,7]
[332175558,1721004667218,-500.0,0.00025479,2]
[332175559,1721004667228,-500.0,0.00025479,2]
[332175560,1721004667238,-500.0,0.00025479,2]
[332175561,1721004667248,-500.0,0.00025479,2]
[332175562,1721004667258,-500.0,0.00025479,2]
[332175563,1721004667268,-500.0,0.00025479,2]
[332175564,1721004667278,-500.0,0.00025479,2]
[332175565,1721004667288,-500.0,0.00025479,2]
[332175566,1721004667298,-499.39709828,0.00025479,2]
[332175567,1721004667307,-13935.41,0.00025479,2]
[332175568,1721004667317,-522.25230848,0.00025479,2]
[332175569,1721004667327,-500.0,0.00025479,2]
[332175570,1721004667336,-500.0,0.00025479,2]
[332175571,1721004667346,-500.0,0.00025479,2]
[332175572,1721004667355,-500.0,0.00025479,2]
[332175573,1721004667365,-500.0,0.00025479,2]
[332175574,1721004667375,-500.0,0.00025479,2]
[332175575,1721004667384,-500.0,0.00025479,2]
[332175576,1721004667394,-1141.2,0.00025479,2]
[332175577,1721004667404,-500.0,0.00025479,2]
[332175578,1721004667414,-500.0,0.00025479,2]
[332175579,1721004667423,-305.42164865,0.00025479,2]
[332175580,1721004667433,-500.0,0.00025479,2]
[332175581,1721004667443,-500.0,0.00025479,2]
[332175582,1721004667453,-500.0,0.00025479,2]
[332175583,1721004667463,-500.0,0.00025479,2]
[332175584,1721004667473,-500.0,0.00025479,2]
[332175585,1721004667482,-500.0,0.00025479,2]
[332175586,1721004667492,-500.0,0.00025479,2]
[332175587,1721004667610,-500.0,0.00025479,2]
[332175588,1721004667620,-1065.91,0.00025479,2]
[332175589,1721004667630,-500.0,0.00025479,2]
[332175590,1721004667639,-500.0,0.00025479,2]
[332175591,1721004667649,-500.0,0.00025479,2]
[332175592,1721004667658,-500.0,0.00025479,2]
[332175593,1721004667667,-500.0,0.00025479,2]
[332175594,1721004667677,-500.0,0.00025479,2]
[332175595,1721004667687,-500.0,0.00025479,2]
[332175596,1721004667696,-500.0,0.00025479,2]
[332175597,1721004667705,-500.0,0.00025479,2]
[332175598,1721004667715,-500.0,0.00025479,2]
[332175599,1721004667725,-500.0,0.00025479,2]
[332175600,1721004667735,-500.0,0.00025479,2]
[332175601,1721004667744,-500.0,0.00025479,2]
[332175602,1721004667754,-500.0,0.00025479,2]
[332175603,1721004667763,-500.0,0.00025479,2]
[332175604,1721004667773,-500.0,0.00025479,2]
[332175605,1721004667784,-500.0,0.00025479,2]
[332175606,1721004667794,-500.0,0.00025479,2]
[332175607,1721004667805,-458.17298887,0.00025479,2]
[332175608,1721004667815,-500.0,0.00025479,2]
[332175609,1721004667824,-2880.57,0.00025479,2]
[332175610,1721004667835,-500.0,0.00025479,2]
[332175611,1721004667845,-500.0,0.00025479,2]
[332175612,1721004667854,-500.0,0.00025479,2]
[332175613,1721004667864,-500.0,0.00025479,2]
[332175614,1721004667875,-500.0,0.00025479,2]
[332175615,1721004667884,-587.23,0.00025479,2]
[332175616,1721004667894,-500.0,0.00025479,2]
[332175617,1721004667903,-500.0,0.00025479,2]
[332175618,1721004667913,-500.0,0.00025479,2]
[332175619,1721004667923,-500.0,0.00025479,2]
[332175620,1721004667933,-500.0,0.00025479,2]
[332175621,1721004667943,-188.03104391,0.00025479,2]
[332175622,1721004667952,-500.0,0.00025479,2]
[332175623,1721004667962,-500.0,0.00025479,2]
[332175624,1721004667972,-500.0,0.00025479,2]
[332175625,1721004667982,-500.0,0.00025479,2]
[332175626,1721004667991,-500.0,0.00025479,2]
[332175627,1721004668000,-500.0,0.00025479,2]
[332175628,1721004668009,-500.0,0.00025479,2]
[332175629,1721004668019,-500.0,0.00025479,2]
[332175630,1721004668028,-500.0,0.00025479,2]
[332175631,1721004668038,-1614.07,0.00025479,2]
[332175632,1721004668047,-500.0,0.00025479,2]
[332175633,1721004668057,-752.76,0.00025479,2]
[332175634,1721004668067,-500.0,0.00025479,2]
[332175635,1721004668076,-524.57865613,0.00025479,2]
[332175636,1721004668089,-287401.18444427,0.000255,2]
[332175637,1721004669105,-317.35068272,0.00016255,2]
[332175638,1721004669116,-203.242437,0.00022517,7]
[332175639,1721004669125,-151.0,0.00022517,7]
[332175640,1721004669136,-203.242437,0.0002335,7]
[332175641,1721004669146,-151.0,0.0002335,7]
[332175642,1721004669155,-203.242437,0.00024271,7]
[332175643,1721004669164,-263.421908,0.00024271,7]
[332175644,1721004669176,-3135.78622205,0.00024437,2]
[332175645,1721004669186,-203.242437,0.00024657,7]
[332175646,1721004669195,-203.242437,0.00024657,7]
[332175647,1721004669204,-500.0,0.00024657,2]
[332175648,1721004669213,-203.242437,0.00024657,7]
[332175649,1721004669222,-203.242437,0.00024657,7]
[332175650,1721004669232,-500.0,0.00024657,2]
[332175651,1721004669241,-203.242437,0.00024657,7]
[332175652,1721004669250,-203.242437,0.00024657,7]
[332175653,1721004669259,-500.0,0.00024657,2]
[332175654,1721004669270,-500.0,0.00024657,2]
[332175655,1721004669280,-203.242437,0.00024658,7]
[332175656,1721004669290,-300.0,0.00024658,2]
[332175657,1721004669298,-203.24243,0.00024658,7]
[332175658,1721004669308,-500.0,0.00024931,2]
[332175659,1721004669319,-500.0,0.00025205,2]
[332175660,1721004669330,-563.60223545,0.00025479,2]
[332175661,1721004669339,-341289.4522261,0.000255,2]
[332175662,1721004669348,-28254.66084161,0.000255,2]
[332175663,1721004669357,-30000.0,0.00025501,2]
[332175664,1721004669367,-14524.36976339,0.00025501,2]
[332175665,1721004669377,-154.59033253,0.00025501,2]
[332175666,1721004669387,-153.0,0.00025589,2]
[332175667,1721004669396,-153.0,0.00025589,2]
[332175668,1721004669405,-153.0,0.00025589,2]
[332175669,1721004669414,-302.33522147,0.00025647,2]
[332175670,1721004669424,-387.2,0.00025698,2]
[332175671,1721004669433,-2500.0,0.000257,2]
[332175672,1721004669442,-500.0,0.00025753,2]
[332175673,1721004669451,-500.0,0.00025753,2]
[332175674,1721004669460,-500.0,0.00025753,2]
[332175675,1721004669470,-500.0,0.00025753,2]
[332175676,1721004669479,-500.0,0.00025753,2]
[332175677,1721004669488,-519.06971428,0.00025753,2]
[332175678,1721004669497,-500.0,0.00025753,2]
[332175679,1721004669506,-500.0,0.00025753,2]
[332175680,1721004669515,-500.0,0.00025753,2]
[332175681,1721004669524,-500.0,0.00025753,2]
[332175682,1721004669533,-500.0,0.00025753,2]
[332175683,1721004669542,-500.0,0.00025753,2]
[332175684,1721004669551,-500.0,0.00025753,2]
[332175685,1721004669560,-500.0,0.00025753,2]
[332175686,1721004669569,-500.0,0.00025753,2]
[332175687,1721004669579,-500.0,0.00025753,2]
[332175688,1721004669589,-151.87603159,0.00025753,2]
[332175689,1721004669598,-500.0,0.00025753,2]
[332175690,1721004669609,-531.90598537,0.00025753,2]
[332175691,1721004669619,-500.0,0.00025753,2]
[332175692,1721004669628,-500.0,0.00025753,2]
[332175693,1721004669638,-500.0,0.00025753,2]
[332175694,1721004669647,-500.0,0.00025753,2]
[332175695,1721004669656,-500.0,0.00025753,2]
[332175696,1721004669665,-500.0,0.00025753,2]
[332175697,1721004669675,-500.0,0.00025753,2]
[332175698,1721004669684,-500.0,0.00025753,2]
[332175699,1721004669693,-500.0,0.00025753,2]
[332175700,1721004669703,-641.39275927,0.00025753,2]
[332175701,1721004669712,-880.28,0.00025753,4]
[332175702,1721004669721,-513.66807977,0.00025753,2]
[332175703,1721004669730,-218.25,0.00025753,2]
[332175704,1721004669739,-500.0,0.00025753,2]
[332175705,1721004669749,-500.0,0.00025753,2]
[332175706,1721004669758,-500.0,0.00025753,2]
[332175707,1721004669767,-500.0,0.00025753,2]
[332175708,1721004669776,-500.0,0.00025753,2]
[332175709,1721004669785,-500.0,0.00025753,2]
[332175710,1721004669797,-500.0,0.00025753,2]
[332175711,1721004669806,-500.0,0.00025753,2]
[332175712,1721004669815,-500.0,0.00025753,2]
[332175713,1721004669824,-500.0,0.00025753,2]
[332175714,1721004669836,-500.0,0.00025753,2]
[332175715,1721004669847,-500.0,0.00025753,2]
[332175716,1721004669857,-500.0,0.00025753,2]
[332175717,1721004669867,-500.0,0.00025753,2]
[332175718,1721004669878,-500.0,0.00025753,2]
[332175719,1721004669888,-500.0,0.00025753,2]
[332175720,1721004669898,-500.0,0.00025753,2]
[332175721,1721004669907,-500.0,0.00025753,2]
[332175722,1721004669916,-500.0,0.00025753,2]
[332175723,1721004669926,-500.0,0.00025753,2]
[332175724,1721004669936,-500.0,0.00025753,2]
[332175725,1721004669945,-500.0,0.00025753,2]
[332175726,1721004669955,-500.0,0.00025753,2]
[332175727,1721004669965,-500.0,0.00025753,2]
[332175728,1721004669974,-500.0,0.00025753,2]
[332175729,1721004669983,-500.0,0.00025753,2]
[332175730,1721004669992,-500.0,0.00025753,2]
[332175731,1721004670002,-500.0,0.00025753,2]
[332175732,1721004670013,-500.0,0.00025753,2]
[332175733,1721004670023,-500.0,0.00025753,2]
[332175734,1721004670033,-500.0,0.00025753,2]
[332175735,1721004670044,-343.99824475,0.00025753,2]
[332175736,1721004670053,-500.0,0.00025753,2]
[332175737,1721004670063,-339.24141103,0.00025753,2]
[332175738,1721004670073,-500.0,0.00025753,2]
[332175739,1721004670086,-500.0,0.00025753,2]
[332175740,1721004670095,-500.0,0.00025753,2]
[332175741,1721004670105,-500.0,0.00025753,2]
[332175742,1721004670115,-305.03713667,0.00025753,2]
[332175743,1721004670126,-500.0,0.00025753,2]
[332175744,1721004670136,-500.0,0.00025753,2]
[332175745,1721004670146,-500.0,0.00025753,2]
[332175746,1721004670155,-500.0,0.00025753,2]
[332175747,1721004670164,-500.0,0.00025753,2]
[332175748,1721004670173,-500.0,0.00025753,2]
[332175749,1721004670182,-500.0,0.00025753,2]
[332175750,1721004670192,-500.0,0.00025753,2]
[332175751,1721004670201,-500.0,0.00025753,2]
[332175752,1721004670210,-500.0,0.00025753,2]
[332175753,1721004670220,-500.0,0.00025753,2]
[332175754,1721004670230,-500.0,0.00025753,2]
[332175755,1721004670241,-500.0,0.00025753,2]
[332175756,1721004670251,-500.0,0.00025753,2]
[332175757,1721004670260,-500.0,0.00025753,2]
[332175758,1721004670270,-500.0,0.00025753,2]
[332175759,1721004670281,-500.0,0.00025753,2]
[332175760,1721004670290,-500.0,0.00025753,2]
[332175761,1721004670299,-500.0,0.00025753,2]
[332175762,1721004670308,-500.0,0.00025753,2]
[332175763,1721004670317,-500.0,0.00025753,2]
[332175764,1721004670330,-500.0,0.00025753,2]
[332175765,1721004670339,-500.0,0.00025753,2]
[332175766,1721004670348,-500.0,0.00025753,2]
[332175767,1721004670357,-500.0,0.00025753,2]
[332175768,1721004670367,-500.0,0.00025753,2]
[332175769,1721004670376,-500.0,0.00025753,2]
[332175770,1721004670384,-500.0,0.00025753,2]
[332175771,1721004670394,-500.0,0.00025753,2]
[332175772,1721004670403,-500.0,0.00025753,2]
[332175773,1721004670412,-500.0,0.00025753,2]
[332175774,1721004670421,-500.0,0.00025753,2]
[332175775,1721004670430,-510.86135467,0.00025753,2]
[332175776,1721004670440,-500.0,0.00025753,2]
[332175777,1721004670449,-374.64710956,0.00025753,2]
[332175778,1721004670458,-503.21029489,0.00025753,2]
[332175779,1721004670467,-500.0,0.00025753,2]
[332175780,1721004670476,-518.60727048,0.00025753,2]
[332175781,1721004670485,-500.0,0.00025753,2]
[332175782,1721004670494,-500.0,0.00025753,2]
[332175783,1721004670503,-500.0,0.00025753,2]
[332175784,1721004670512,-500.0,0.00025753,2]
[332175785,1721004670521,-500.0,0.00025753,2]
[332175786,1721004670531,-243.68912803,0.00025753,2]
[332175787,1721004670540,-500.0,0.00025753,2]
[332175788,1721004670551,-500.0,0.00025753,2]
[332175789,1721004670560,-500.0,0.00025753,2]
[332175790,1721004670569,-500.0,0.00025753,2]
[332175791,1721004670580,-500.0,0.00025753,2]
[332175792,1721004670589,-500.0,0.00025753,2]
[332175793,1721004670598,-500.0,0.00025753,2]
[332175794,1721004670607,-500.0,0.00025753,2]
[332175795,1721004670616,-500.0,0.00025753,2]
[332175796,1721004670626,-500.0,0.00025753,2]
[332175797,1721004670635,-542.92726571,0.00025753,2]
[332175798,1721004670645,-500.0,0.00025753,2]
[332175799,1721004670654,-500.0,0.00025753,2]
[332175800,1721004670663,-412.19104941,0.00025753,2]
[332175801,1721004670723,-629.7,0.00024931,2]
[332175802,1721004670732,-87.80895059,0.00025753,2]
[332175803,1721004670742,-500.0,0.00025753,2]
[332175804,1721004670752,-500.0,0.00025753,2]
[332175805,1721004670762,-500.0,0.00025753,2]
[332175806,1721004670770,-437.17474663,0.00025753,2]
[332175807,1721004670780,-500.0,0.00025753,2]
[332175808,1721004670793,-500.0,0.00025753,2]
[332175809,1721004670802,-500.0,0.00025753,2]
[332175810,1721004670811,-500.0,0.00025753,2]
[332175811,1721004670821,-500.0,0.00025753,2]
[332175812,1721004670834,-500.0,0.00025753,2]
[332175813,1721004670844,-500.0,0.00025753,2]
[332175814,1721004670853,-500.0,0.00025753,2]
[332175815,1721004670864,-500.0,0.00025753,2]
[332175816,1721004670874,-500.0,0.00025753,2]
[332175817,1721004670883,-500.0,0.00025753,2]
[332175818,1721004670892,-500.0,0.00025753,2]
[332175819,1721004670902,-500.0,0.00025753,2]
[332175820,1721004670991,-500.0,0.00025753,2]
[332175821,1721004671001,-575.73674924,0.00025753,2]
[332175822,1721004671013,-506.91,0.00025753,2]
[332175823,1721004671023,-228.8614272,0.00025753,2]
[332175824,1721004671033,-500.0,0.00025753,2]
[332175825,1721004671044,-156.14333176,0.00025753,2]
[332175826,1721004671057,-343.85666824,0.00025753,2]
[332175827,1721004671066,-500.0,0.00025753,2]
[332175828,1721004671076,-500.0,0.00025753,2]
[332175829,1721004671086,-500.0,0.00025753,2]
[332175830,1721004671096,-224.88866811,0.00025753,2]
[332175831,1721004671219,-275.11133189,0.00025753,2]
[332175832,1721004671228,-500.0,0.00025753,2]
[332175833,1721004671237,-500.0,0.00025753,2]
[332175834,1721004671247,-284.34228603,0.00025753,2]
[332175835,1721004671256,-500.0,0.00025753,2]
[332175836,1721004671266,-523.1223755,0.00025753,2]
[332175837,1721004671275,-561.52211074,0.00025753,2]
[332175838,1721004671285,-500.0,0.00025753,2]
[332175839,1721004671294,-500.0,0.00025753,2]
[332175840,1721004671303,-500.0,0.00025753,2]
[332175841,1721004671313,-500.0,0.00025753,2]
[332175842,1721004671324,-621.33362321,0.00025753,2]
[332175844,1721004745209,1436.57937401,0.00014999,2]
[332175845,1721004750852,155.25580085,0.00014999,2]
[332175846,1721004762314,7746.52138654,0.00014998,2]
[332175847,1721004767411,212.57443582,0.00014999,2]
[332175848,1721004770517,159.81747957,0.00014999,2]
[332175849,1721004775871,950.44599873,0.00015,2]
[332175850,1721004777376,5963.30631602,0.00014998,2]
[332175851,1721004782705,230.84626702,0.00014999,2]
[332175853,1721004797738,154.62117811,0.00014999,2]
[332175854,1721004816954,1535.35477659,0.00014999,2]
[332175855,1721004838170,720.01545952,0.00014998,2]
[332175856,1721004911490,159.66841707,0.00014999,2]
[332175857,1721004921863,832.2084313,0.00015,2]
[332175866,1721005648257,238.68124308,0.00015,2]
[332175867,1721005668260,980.77879208,0.00014999,2]
[332175902,1721005831899,-154.59033561,0.0001818,2]
[332175904,1721005831909,-197.47648542,0.00019,2]
[332175906,1721005831918,-266.82942394,0.000199,2]
[332175979,1721005837937,-4.77750564,0.000199,2]
[332175981,1721005837947,-1066.54542754,0.0002,2]
[332175983,1721005837957,-154.90127976,0.0002,2]
[332175986,1721005837968,-428.71334484,0.0002,2]
[332175988,1721005837978,-156.35127608,0.0002019,2]
[332175990,1721005837987,-163.02889907,0.0002019,2]
[332175992,1721005837998,-300.0,0.0002019,2]
[332175994,1721005838007,-22072.6341143,0.00020191,2]
[332175996,1721005838017,-2378.8665163,0.0002048,2]
[332175998,1721005838027,-637.510577,0.00020503,2]
[332176000,1721005838037,-250.0,0.00020535,2]
[332176002,1721005838047,-271.60692958,0.00020789,2]
[332176006,1721005838056,-163.002613,0.00020805,2]
[332176010,1721005838065,-394.397187,0.00020902,2]
[332176014,1721005838074,-480.42889,0.00021096,2]
[332176016,1721005838085,-163.002613,0.00021348,2]
[332176018,1721005838095,-271.60692958,0.00021677,2]
[332176020,1721005838105,-163.002613,0.0002189,2]
[332176022,1721005838115,-166.666666,0.00021918,2]
[332176025,1721005838126,-420.0,0.00022209,2]
[332176027,1721005838139,-166.666666,0.00022431,2]
[332176029,1721005838148,-166.666666,0.00022944,2]
[332176031,1721005838159,-1339.09422245,0.00023,2]
[332176033,1721005838168,-7088.60953142,0.000234,2]
[332176035,1721005838179,-1424.60469054,0.00023453,2]
[332176037,1721005838190,-20729.83312244,0.00023455,2]
[332176039,1721005838199,-166.666666,0.00023456,2]
[332176041,1721005838209,-158.02974433,0.00023968,2]
[332176042,1721005838219,-166.666666,0.00023969,2]
[332176044,1721005838229,-273.3,0.00024151,2]
[332176046,1721005838240,-587.0,0.0002443,2]
[332176048,1721005838250,-2000.0,0.00024437,2]
[332176050,1721005838259,-2613.15518505,0.00024459,2]
[332176052,1721005838269,-880.93169364,0.00024481,2]
[332176054,1721005838280,-166.666666,0.00024482,2]
[332176055,1721005838289,-500.0,0.0002452,2]
[332176057,1721005838299,-177.06,0.00024527,3]
[332176059,1721005838308,-531.21,0.00024527,3]
[332176061,1721005838318,-500.0,0.00024536,2]
[332176062,1721005838326,-168.74508341,0.00024536,2]
[332176064,1721005838338,-500.0,0.00024536,2]
[332176066,1721005838348,-311.4139246,0.00024536,2]
[332176068,1721005838358,-197.61151469,0.00024536,2]
[332176070,1721005838367,-500.0,0.00024536,2]
[332176071,1721005838376,-500.0,0.00024536,2]
[332176072,1721005838387,-325.25589049,0.00024536,2]
[332176073,1721005838400,-500.0,0.00024536,2]
[332176074,1721005838411,-500.0,0.00024536,2]
[332176075,1721005838420,-500.0,0.00024536,2]
[332176076,1721005838430,-500.0,0.00024536,2]
[332176077,1721005838439,-500.0,0.00024536,2]
[332176078,1721005838448,-256917.534979,0.00024537,3]
[332176079,1721005838457,-47304.96113448,0.00024547,3]
[332176080,1721005838469,-22056.14624128,0.00024547,3]
[332176095,1721005839983,-6121.70000001,0.00024547,3]
[332176096,1721005840060,-13405.19262423,0.00024547,3]
[332176097,1721005840069,-4489.68376102,0.00024557,2]
[332176098,1721005840079,-15256.8904732,0.0002459,5]
[332176099,1721005840089,-16696.23424579,0.0002459,3]
[332176152,1721005846051,-244.53055577,0.0002019,2]
[332176153,1721005846061,-111762.53324321,0.0002459,3]
[332176154,1721005846070,-150.112233,0.000246,3]
[332176155,1721005846079,-52549.3967625,0.000246,2]
[332176156,1721005846089,-128458.767489,0.00024647,3]
[332176157,1721005846100,-500.0,0.00024657,2]
[332176158,1721005846110,-500.0,0.00024657,2]
[332176159,1721005846119,-500.0,0.00024657,2]
[332176160,1721005846129,-500.0,0.00024657,2]
[332176161,1721005846142,-500.0,0.00024657,2]
[332176162,1721005846151,-500.0,0.00024657,2]
[332176163,1721005846160,-500.0,0.00024657,2]
[332176164,1721005846169,-500.0,0.00024657,2]
[332176165,1721005846180,-500.0,0.00024657,2]
[332176166,1721005846191,-500.0,0.00024657,2]
[332176167,1721005846200,-500.0,0.00024657,2]
[332176168,1721005846210,-500.0,0.00024657,2]
[332176169,1721005846222,-511.76474404,0.00024657,2]
[332176170,1721005846233,-500.0,0.00024657,2]
[332176171,1721005846243,-500.0,0.00024657,2]
[332176172,1721005846253,-500.0,0.00024657,2]
[332176173,1721005846262,-500.0,0.00024657,2]
[332176174,1721005846271,-500.0,0.00024657,2]
[332176175,1721005846280,-500.0,0.00024657,2]
[332176176,1721005846291,-500.0,0.00024657,2]
[332176177,1721005846301,-500.0,0.00024657,2]
[332176178,1721005846311,-500.0,0.00024657,2]
[332176179,1721005846321,-500.0,0.00024657,2]
[332176180,1721005846330,-500.0,0.00024657,2]
[332176181,1721005846339,-500.0,0.00024657,2]
[332176182,1721005846350,-530.63060473,0.00024657,2]
[332176183,1721005846359,-500.0,0.00024657,2]
[332176184,1721005846368,-500.0,0.00024657,2]
[332176185,1721005846378,-500.0,0.00024657,2]
[332176186,1721005846387,-500.0,0.00024657,2]
[332176187,1721005846397,-512.04936283,0.00024657,2]
[332176188,1721005846406,-500.0,0.00024657,2]
[332176189,1721005846415,-500.0,0.00024657,2]
[332176190,1721005846425,-528.03008142,0.00024657,2]
[332176191,1721005846434,-500.0,0.00024657,2]
[332176192,1721005846443,-500.0,0.00024657,2]
[332176193,1721005846453,-500.0,0.00024657,2]
[332176194,1721005846462,-374.64710956,0.00024657,2]
[332176195,1721005846472,-510.86135467,0.00024657,2]
[332176196,1721005846482,-500.0,0.00024657,2]
[332176197,1721005846491,-518.60727048,0.00024657,2]
[332176198,1721005846500,-500.0,0.00024657,2]
[332176199,1721005846510,-500.0,0.00024657,2]
[332176200,1721005846519,-500.0,0.00024657,2]
[332176201,1721005846529,-500.0,0.00024657,2]
[332176202,1721005846538,-500.0,0.00024657,2]
[332176203,1721005846548,-500.0,0.00024657,2]
[332176204,1721005846558,-500.0,0.00024657,2]
[332176205,1721005846567,-500.0,0.00024657,2]
[332176206,1721005846577,-500.0,0.00024657,2]
[332176207,1721005846586,-500.0,0.00024657,2]
[332176208,1721005846596,-504.62117378,0.00024657,2]
[332176209,1721005846606,-500.0,0.00024657,2]
[332176210,1721005846615,-500.0,0.00024657,2]
[332176211,1721005846625,-500.0,0.00024657,2]
[332176212,1721005846634,-500.0,0.00024657,2]
[332176213,1721005846644,-500.0,0.00024657,2]
[332176214,1721005846654,-500.0,0.00024657,2]
[332176215,1721005846664,-500.0,0.00024657,2]
[332176216,1721005846673,-500.0,0.00024657,2]
[332176217,1721005846683,-500.0,0.00024657,2]
[332176218,1721005846692,-500.0,0.00024657,2]
[332176219,1721005846702,-542.92726571,0.00024657,2]
[332176220,1721005846712,-500.0,0.00024657,2]
[332176221,1721005846722,-500.0,0.00024657,2]
[332176222,1721005846731,-500.0,0.00024657,2]
[332176223,1721005846741,-500.0,0.00024657,2]
[332176224,1721005846751,-500.0,0.00024657,2]
[332176225,1721005846761,-500.0,0.00024657,2]
[332176226,1721005846770,-500.0,0.00024657,2]
[332176227,1721005846781,-500.0,0.00024657,2]
[332176228,1721005846791,-500.0,0.00024657,2]
[332176229,1721005846801,-500.0,0.00024657,2]
[332176230,1721005846811,-500.0,0.00024657,2]
[332176231,1721005846822,-500.0,0.00024657,2]
[332176232,1721005846833,-500.0,0.00024657,2]
[332176233,1721005846844,-1500.0,0.00024657,2]
[332176234,1721005846854,-500.0,0.00024657,2]
[332176235,1721005846863,-732.27,0.00024657,2]
[332176236,1721005846997,-500.0,0.00024657,2]
[332176237,1721005847008,-500.0,0.00024657,2]
[332176238,1721005847018,-500.0,0.00024657,2]
[332176239,1721005847028,-516.66677474,0.00024657,2]
[332176240,1721005847037,-500.0,0.00024657,2]
[332176241,1721005847048,-500.0,0.00024657,2]
[332176242,1721005847057,-500.0,0.00024657,2]
[332176243,1721005847067,-500.0,0.00024657,2]
[332176244,1721005847076,-555.04902352,0.00024657,2]
[332176245,1721005847085,-500.0,0.00024657,2]
[332176246,1721005847097,-500.0,0.00024657,2]
[332176247,1721005847107,-500.0,0.00024657,2]
[332176248,1721005847117,-500.0,0.00024657,2]
[332176249,1721005847128,-500.0,0.00024657,2]